[Event "ESP-chT Honor Division 2022"]
[Site "Linares"]
[Date "2022.09.17"]
[Round "1.1"]
[White "Eljanov, Pavel"]
[Black "Shirov, Alexei"]
[Result "1-0"]
[ECO "A11"]
[WhiteElo "2695"]
[BlackElo "2673"]
[Annotator "ChessBase"]
[PlyCount "129"]
[EventDate "2022.09.17"]
[EventType "team-tourn"]
[EventCountry "ESP"]
[SourceTitle "playchess.com"]
[Source "ChessBase"]
[SourceQuality "1"]
[TimeControl "5400+30"]

1. c4 {[%emt 0:00:06]} c6 {[%emt 0:00:10]} 2. Nf3 {[%emt 0:00:08]} d5 {[%emt 0:00:06]} 3. g3 {[%emt 0:00:07]} g6 {[%emt 0:03:13]} 4. Qa4 {[%emt 0:00:32]} e6 {[%emt 0:08:24]} 5. d4 {[%emt 0:00:17]} Nd7 {[%emt 0:01:05]} 6. Qc2 {[%emt 0:00:44]} Bg7 {[%emt 0:05:27]} 7. Bg2 {[%emt 0:00:11]} Ne7 {[%emt 0:00:37]} 8. O-O {[%emt 0:04:33]} O-O {[%emt 0:00:41]} 9. Bf4 {[%emt 0:08:34]} dxc4 {[%emt 0:05:33]} 10. Qxc4 {[%emt 0:08:18]} Nd5 {[%emt 0:14:29]} 11. Bg5 {[%emt 0:00:38]} f6 {[%emt 0:04:11]} 12. Bd2 {[%emt 0:00:41]} f5 {[%emt 0:00:07]} 13. Nc3 {[%emt 0:08:53]} N7f6 {[%emt 0:00:24]} 14. Rad1 {[%emt 0:07:28]} Qb6 {[%emt 0:04:52]} 15. Bc1 {[%emt 0:03:23]} a5 {[%emt 0:03:04]} 16. Rfe1 {[%emt 0:04:02]} Qa6 {[%emt 0:16:18]} 17. Qa4 {[%emt 0:05:53]} b5 {[%emt 0:02:38]} 18. Qc2 {[%emt 0:00:09]} Bb7 {[%emt 0:00:48]} 19. Ng5 {[%emt 0:09:01]} c5 {[%emt 0:06:08]} 20. dxc5 {[%emt 0:06:15]} Rac8 {[%emt 0:11:33]} 21. Nxd5 {[%emt 0:01:12]} exd5 {[%emt 0:00:07]} 22. Be3 {[%emt 0:04:29]} h6 {[%emt 0:00:06]} 23. Nf3 {[%emt 0:04:41]} Ne4 {[%emt 0:00:16]} 24. Nd2 {[%emt 0:02:10]} b4 {[%emt 0:07:44]} 25. Nxe4 {[%emt 0:02:17]} fxe4 {[%emt 0:00:03]} 26. Bh3 {[%emt 0:06:53]} Rc7 {[%emt 0:01:25]} 27. Bf4 {[%emt 0:00:40]} Rcf7 {[%emt 0:01:42]} 28. Bd6 {[%emt 0:01:55]} Re8 {[%emt 0:00:20]} 29. e3 {[%emt 0:03:45]} Bc6 {[%emt 0:00:04]} 30. Rd2 {[%emt 0:02:40]} a4 {[%emt 0:00:59]} 31. Red1 {[%emt 0:01:59]} Qb7 {[%emt 0:00:33]} 32. b3 {[%emt 0:00:09]} Bc3 {[%emt 0:00:27]} 33. bxa4 {[%emt 0:00:31]} Qa8 {[%emt 0:01:12]} 34. Qb3 {[%emt 0:01:26]} Bxd2 {[%emt 0:01:11]} 35. Rxd2 {[%emt 0:00:05]} Ra7 {[%emt 0:01:13]} 36. Qxb4 {[%emt 0:02:52]} Rxa4 {[%emt 0:00:04]} 37. Qb2 {[%emt 0:00:14]} Kf7 {[%emt 0:00:42]} 38. Bg4 {[%emt 0:00:07]} Ra7 {[%emt 0:00:56]} 39. Bd1 {[%emt 0:00:17]} Qb7 {[%emt 0:00:21]} 40. Bb3 {[%emt 0:00:12]} Kg8 {[%emt 0:00:17]} 41. Rd4 {[%emt 0:01:28]} Kh7 {[%emt 0:00:49]} 42. Qd2 {[%emt 0:00:19]} Ra3 {[%emt 0:00:32]} 43. h4 {[%emt 0:00:31]} Rxb3 {[%emt 0:00:29]} 44. axb3 {[%emt 0:00:03]} Qxb3 {[%emt 0:00:06]} 45. Qa5 {[%emt 0:00:44]} Qb1+ {[%emt 0:00:28]} 46. Kh2 {[%emt 0:01:04]} Qb7 {[%emt 0:00:43]} 47. Qb6 {[%emt 0:00:40]} Qd7 {[%emt 0:00:15]} 48. Rd2 {[%emt 0:00:21]} Ra8 {[%emt 0:00:17]} 49. Be5 {[%emt 0:00:41]} g5 {[%emt 0:00:33]} 50. h5 {[%emt 0:00:19]} Kg8 {[%emt 0:00:26]} 51. Qc7 {[%emt 0:00:45]} Qxc7 {[%emt 0:00:42]} 52. Bxc7 {[%emt 0:00:04]} Kf7 {[%emt 0:00:12]} 53. g4 {[%emt 0:00:37]} Ke6 {[%emt 0:01:14]} 54. Rb2 {[%emt 0:00:11]} Rf8 {[%emt 0:00:26]} 55. Bg3 {[%emt 0:00:53]} Ra8 {[%emt 0:00:29]} 56. Rb6 {[%emt 0:00:11]} Kd7 {[%emt 0:00:03]} 57. Be5 {[%emt 0:00:08]} Ra2 {[%emt 0:01:02]} 58. Kg3 {[%emt 0:00:16]} Rc2 {[%emt 0:00:22]} 59. Rb8 {[%emt 0:01:01]} Rxc5 {[%emt 0:00:20]} 60. Rh8 {[%emt 0:00:11]} Rc1 {[%emt 0:00:11]} 61. Rxh6 {[%emt 0:00:31]} Bb5 {[%emt 0:00:52]} 62. Rg6 {[%emt 0:00:59]} Rg1+ {[%emt 0:00:31]} 63. Kh2 {[%emt 0:00:07]} Rf1 {[%emt 0:00:20]} 64. Kg2 {[%emt 0:00:16]} Be2 {[%emt 0:00:05]} 65. Rxg5 {[%emt 0:00:13]} 1-0

[Event "ESP-chT Honor Division 2022"]
[Site "Linares"]
[Date "2022.09.17"]
[Round "1.2"]
[White "Alekseenko, Kirill"]
[Black "Jones, Gawain C B"]
[Result "1-0"]
[ECO "C77"]
[WhiteElo "2707"]
[BlackElo "2623"]
[Annotator "ChessBase"]
[PlyCount "101"]
[EventDate "2022.09.17"]
[EventType "team-tourn"]
[EventCountry "ESP"]
[SourceTitle "playchess.com"]
[Source "ChessBase"]
[SourceQuality "1"]
[TimeControl "5400+30"]

1. e4 {[%emt 0:00:08]} e5 {[%emt 0:00:15]} 2. Nf3 {[%emt 0:00:32]} Nc6 {[%emt 0:00:07]} 3. Bb5 {[%emt 0:00:30]} a6 {[%emt 0:00:09]} 4. Ba4 {[%emt 0:00:27]} Nf6 {[%emt 0:00:06]} 5. d3 {[%emt 0:01:05]} b5 {[%emt 0:00:25]} 6. Bb3 {[%emt 0:00:09]} Bc5 {[%emt 0:00:04]} 7. Bg5 {[%emt 0:00:32]} d6 {[%emt 0:13:44]} 8. c3 {[%emt 0:01:37]} h6 {[%emt 0:04:57]} 9. Bh4 {[%emt 0:00:10]} Bb6 {[%emt 0:02:51]} 10. a4 {[%emt 0:01:36]} Rb8 {[%emt 0:01:14]} 11. axb5 {[%emt 0:02:36]} axb5 {[%emt 0:00:07]} 12. Na3 {[%emt 0:01:39]} Na5 {[%emt 0:15:51]} 13. Ba2 {[%emt 0:12:48]} b4 {[%emt 0:01:25]} 14. cxb4 {[%emt 0:23:38]} Nc6 {[%emt 0:00:08]} 15. Nc2 {[%emt 0:01:41]} Bg4 {[%emt 0:16:50]} 16. Bd5 {[%emt 0:05:10]} Bd7 {[%emt 0:08:39]} 17. Bc4 {[%emt 0:06:01]} g5 {[%emt 0:06:00]} 18. Bg3 {[%emt 0:00:07]} Qe7 {[%emt 0:00:46]} 19. O-O {[%emt 0:23:08]} Kf8 {[%emt 0:00:54]} 20. Kh1 {[%emt 0:01:27]} Bg4 {[%emt 0:05:22]} 21. Ne3 {[%emt 0:03:29]} Bh5 {[%emt 0:02:28]} 22. Qa4 {[%emt 0:01:40]} Bxf3 {[%emt 0:01:26]} 23. Qxc6 {[%emt 0:01:17]} Bg4 {[%emt 0:00:49]} 24. Nxg4 {[%emt 0:04:38]} Nxg4 {[%emt 0:00:06]} 25. Bb3 {[%emt 0:02:18]} Bd4 {[%emt 0:06:33]} 26. b5 {[%emt 0:00:28]} Kg7 {[%emt 0:03:18]} 27. Rac1 {[%emt 0:00:25]} Rhc8 {[%emt 0:03:19]} 28. Bd1 {[%emt 0:03:23]} Nf6 {[%emt 0:00:52]} 29. b4 {[%emt 0:00:10]} Ra8 {[%emt 0:01:25]} 30. Bb3 {[%emt 0:00:46]} Ra3 {[%emt 0:00:43]} 31. Qc2 {[%emt 0:00:24]} Ng4 {[%emt 0:02:03]} 32. h3 {[%emt 0:01:11]} Nf6 {[%emt 0:00:05]} 33. Bh2 {[%emt 0:00:28]} Qd7 {[%emt 0:01:08]} 34. Bc4 {[%emt 0:00:04]} Rca8 {[%emt 0:01:25]} 35. Qd2 {[%emt 0:01:00]} R8a7 {[%emt 0:01:02]} 36. Qe2 {[%emt 0:00:22]} R3a4 {[%emt 0:00:44]} 37. Rb1 {[%emt 0:00:05]} Kf8 {[%emt 0:00:38]} 38. Bg1 {[%emt 0:00:10]} d5 {[%emt 0:00:43]} 39. exd5 {[%emt 0:01:26]} Nxd5 {[%emt 0:00:04]} 40. Bh2 {[%emt 0:00:19]} Nc3 {[%emt 0:00:34]} 41. Qh5 {[%emt 0:00:03]} Kg7 {[%emt 0:00:55]} 42. f4 {[%emt 0:01:19]} exf4 {[%emt 0:00:42]} 43. Bxf4 {[%emt 0:00:13]} f6 {[%emt 0:00:29]} 44. Rbe1 {[%emt 0:00:41]} Ra8 {[%emt 0:00:20]} 45. Bg3 {[%emt 0:01:02]} Rxb4 {[%emt 0:00:16]} 46. Be6 {[%emt 0:00:21]} Qe8 {[%emt 0:00:08]} 47. Qf3 {[%emt 0:00:03]} Qf8 {[%emt 0:01:11]} 48. Qc6 {[%emt 0:00:30]} Re8 {[%emt 0:00:31]} 49. Bc4 {[%emt 0:00:50]} Re2 {[%emt 0:00:36]} 50. Qd7+ {[%emt 0:00:17]} Kh8 {[%emt 0:00:29]} 51. Qxd4 {[%emt 0:00:05]} 1-0

[Event "ESP-chT Honor Division 2022"]
[Site "Linares"]
[Date "2022.09.17"]
[Round "1.3"]
[White "Del Rio De Angelis, Salvador G."]
[Black "Korobov, Anton"]
[Result "1/2-1/2"]
[ECO "E44"]
[WhiteElo "2456"]
[BlackElo "2671"]
[Annotator "ChessBase"]
[PlyCount "82"]
[EventDate "2022.09.17"]
[EventType "team-tourn"]
[EventCountry "ESP"]
[SourceTitle "playchess.com"]
[Source "ChessBase"]
[SourceQuality "1"]
[TimeControl "5400+30"]

1. d4 {[%emt 0:00:08]} Nf6 {[%emt 0:00:07]} 2. c4 {[%emt 0:00:08]} e6 {[%emt 0:00:08]} 3. Nc3 {[%emt 0:00:19]} Bb4 {[%emt 0:00:19]} 4. e3 {[%emt 0:00:19]} b6 {[%emt 0:00:55]} 5. Nge2 {[%emt 0:00:33]} Ne4 {[%emt 0:01:00]} 6. Bd2 {[%emt 0:01:48]} Nxd2 {[%emt 0:00:18]} 7. Qxd2 {[%emt 0:00:06]} O-O {[%emt 0:00:34]} 8. a3 {[%emt 0:03:07]} Be7 {[%emt 0:00:17]} 9. Nf4 {[%emt 0:08:06]} c6 {[%emt 0:02:00]} 10. Bd3 {[%emt 0:05:03]} Bb7 {[%emt 0:05:38]} 11. Qc2 {[%emt 0:08:40]} h6 {[%emt 0:01:13]} 12. O-O {[%emt 0:00:22]} d5 {[%emt 0:00:38]} 13. cxd5 {[%emt 0:04:28]} cxd5 {[%emt 0:00:44]} 14. Qe2 {[%emt 0:01:44]} Nd7 {[%emt 0:06:39]} 15. Rac1 {[%emt 0:04:22]} a6 {[%emt 0:02:07]} 16. Bb1 {[%emt 0:02:48]} Bd6 {[%emt 0:03:56]} 17. Qd3 {[%emt 0:03:08]} Nf6 {[%emt 0:01:27]} 18. Nh5 {[%emt 0:02:25]} g6 {[%emt 0:01:29]} 19. Nxf6+ {[%emt 0:02:21]} Qxf6 {[%emt 0:00:21]} 20. Na4 {[%emt 0:03:53]} Qd8 {[%emt 0:01:12]} 21. Qb3 {[%emt 0:02:59]} Bc7 {[%emt 0:03:32]} 22. Bd3 {[%emt 0:00:44]} Qd6 {[%emt 0:02:29]} 23. f4 {[%emt 0:00:28]} Rfc8 {[%emt 0:01:27]} 24. Rc3 {[%emt 0:03:03]} Bd8 {[%emt 0:04:09]} 25. Rfc1 {[%emt 0:00:18]} Rxc3 {[%emt 0:01:56]} 26. Rxc3 {[%emt 0:00:27]} Bc6 {[%emt 0:02:54]} 27. Rc1 {[%emt 0:04:39]} Bd7 {[%emt 0:09:36]} 28. Nc3 {[%emt 0:01:56]} b5 {[%emt 0:02:42]} 29. Ne2 {[%emt 0:05:43]} Rb8 {[%emt 0:04:35]} 30. Qc2 {[%emt 0:03:26]} Rc8 {[%emt 0:01:12]} 31. Qd2 {[%emt 0:00:54]} Rb8 {[%emt 0:06:10]} 32. Qc2 {[%emt 0:00:09]} g5 {[%emt 0:02:51]} 33. g3 {[%emt 0:03:09]} b4 {[%emt 0:01:56]} 34. Qc5 {[%emt 0:05:35]} Be7 {[%emt 0:01:49]} 35. Qxd6 {[%emt 0:01:07]} Bxd6 {[%emt 0:00:02]} 36. Bxa6 {[%emt 0:00:11]} bxa3 {[%emt 0:01:36]} 37. bxa3 {[%emt 0:00:09]} Ra8 {[%emt 0:01:57]} 38. Bd3 {[%emt 0:01:22]} Rxa3 {[%emt 0:01:51]} 39. Rc3 {[%emt 0:00:07]} Rxc3 {[%emt 0:03:14]} 40. Nxc3 {[%emt 0:00:09]} Bb4 {[%emt 0:00:05]} 41. Ne2 {[%emt 0:01:00]} Kg7 {[%emt 0:01:04]} 1/2-1/2

[Event "ESP-chT Honor Division 2022"]
[Site "Linares"]
[Date "2022.09.17"]
[Round "1.4"]
[White "Alonso Rosell, Alvar"]
[Black "Suarez Garcia, Carlos"]
[Result "1/2-1/2"]
[ECO "E04"]
[WhiteElo "2564"]
[BlackElo "2455"]
[Annotator "ChessBase"]
[PlyCount "49"]
[EventDate "2022.09.17"]
[EventType "team-tourn"]
[EventCountry "ESP"]
[SourceTitle "playchess.com"]
[Source "ChessBase"]
[SourceQuality "1"]
[TimeControl "5400+30"]

1. d4 {[%emt 0:00:03]} d5 {[%emt 0:00:25]} 2. c4 {[%emt 0:00:07]} e6 {[%emt 0:00:05]} 3. Nf3 {[%emt 0:00:05]} Nf6 {[%emt 0:00:19]} 4. g3 {[%emt 0:03:09]} dxc4 {[%emt 0:00:29]} 5. Bg2 {[%emt 0:00:42]} Bd7 {[%emt 0:00:26]} 6. Ne5 {[%emt 0:01:48]} Bc6 {[%emt 0:00:24]} 7. Nxc6 {[%emt 0:01:02]} Nxc6 {[%emt 0:00:07]} 8. O-O {[%emt 0:00:19]} Qd7 {[%emt 0:06:06]} 9. e3 {[%emt 0:00:28]} Rb8 {[%emt 0:01:27]} 10. Qe2 {[%emt 0:24:11]} b5 {[%emt 0:00:09]} 11. b3 {[%emt 0:00:23]} cxb3 {[%emt 0:00:06]} 12. axb3 {[%emt 0:01:21]} Rb6 {[%emt 0:00:02]} 13. Bb2 {[%emt 0:07:24]} a6 {[%emt 0:04:31]} 14. Rd1 {[%emt 0:13:32]} Be7 {[%emt 0:03:40]} 15. e4 {[%emt 0:07:54]} O-O {[%emt 0:15:57]} 16. Nd2 {[%emt 0:19:56]} Nb4 {[%emt 0:10:39]} 17. Nf3 {[%emt 0:02:32]} Qc8 {[%emt 0:05:45]} 18. Rdc1 {[%emt 0:02:23]} Re8 {[%emt 0:06:13]} 19. Bc3 {[%emt 0:02:28]} Nc6 {[%emt 0:09:38]} 20. Rc2 {[%emt 0:03:27]} Nb4 {[%emt 0:01:55]} 21. Rcc1 {[%emt 0:01:56]} Nc6 {[%emt 0:00:07]} 22. Rc2 {[%emt 0:02:01]} Nb4 {[%emt 0:00:13]} 23. Rcc1 {[%emt 0:00:55]} Nc6 {[%emt 0:00:05]} 24. Rc2 {[%emt 0:00:31]} Nb4 {[%emt 0:00:05]} 25. Rcc1 {[%emt 0:00:04]} 1/2-1/2

[Event "ESP-chT Honor Division 2022"]
[Site "Linares"]
[Date "2022.09.17"]
[Round "1.5"]
[White "Trigo Urquijo, Sergio"]
[Black "Henderson de La Fuente, Lance"]
[Result "1/2-1/2"]
[ECO "A05"]
[WhiteElo "2402"]
[BlackElo "2504"]
[Annotator "ChessBase"]
[PlyCount "60"]
[EventDate "2022.09.17"]
[EventType "team-tourn"]
[EventCountry "ESP"]
[SourceTitle "playchess.com"]
[Source "ChessBase"]
[SourceQuality "1"]
[TimeControl "5400+30"]

1. Nf3 {[%emt 0:00:04]} Nf6 {[%emt 0:01:00]} 2. g3 {[%emt 0:00:27]} b6 {[%emt 0:00:59]} 3. Bg2 {[%emt 0:00:40]} Bb7 {[%emt 0:00:10]} 4. O-O {[%emt 0:00:48]} g6 {[%emt 0:00:58]} 5. b3 {[%emt 0:03:06]} Bg7 {[%emt 0:00:15]} 6. Bb2 {[%emt 0:00:09]} O-O {[%emt 0:00:15]} 7. c4 {[%emt 0:00:46]} c5 {[%emt 0:01:04]} 8. Nc3 {[%emt 0:01:20]} d6 {[%emt 0:08:27]} 9. Re1 {[%emt 0:07:26]} Ne4 {[%emt 0:03:47]} 10. Qc2 {[%emt 0:07:34]} Nxc3 {[%emt 0:00:31]} 11. Bxc3 {[%emt 0:00:07]} Bxc3 {[%emt 0:01:51]} 12. Qxc3 {[%emt 0:00:38]} Nd7 {[%emt 0:04:37]} 13. d4 {[%emt 0:04:33]} cxd4 {[%emt 0:01:36]} 14. Qxd4 {[%emt 0:00:42]} Qc7 {[%emt 0:01:43]} 15. Rac1 {[%emt 0:11:26]} Nf6 {[%emt 0:07:33]} 16. e4 {[%emt 0:07:41]} Rfd8 {[%emt 0:14:52]} 17. e5 {[%emt 0:07:02]} dxe5 {[%emt 0:02:16]} 18. Qxe5 {[%emt 0:00:08]} Qxe5 {[%emt 0:00:29]} 19. Rxe5 {[%emt 0:00:42]} Kf8 {[%emt 0:02:33]} 20. Re2 {[%emt 0:02:04]} Rac8 {[%emt 0:05:37]} 21. Ne5 {[%emt 0:03:29]} Bxg2 {[%emt 0:00:15]} 22. Kxg2 {[%emt 0:00:08]} Nd7 {[%emt 0:01:49]} 23. Rd1 {[%emt 0:04:41]} Nxe5 {[%emt 0:00:33]} 24. Rxd8+ {[%emt 0:00:06]} Rxd8 {[%emt 0:00:03]} 25. Rxe5 {[%emt 0:00:10]} Rd2 {[%emt 0:02:32]} 26. a4 {[%emt 0:00:36]} Rb2 {[%emt 0:00:47]} 27. Rb5 {[%emt 0:00:30]} Ke8 {[%emt 0:00:18]} 28. c5 {[%emt 0:02:55]} bxc5 {[%emt 0:00:31]} 29. Rxc5 {[%emt 0:00:06]} Rxb3 {[%emt 0:00:30]} 30. Rc7 {[%emt 0:00:10]} g5 {[%emt 0:03:54]} 1/2-1/2

[Event "ESP-chT Honor Division 2022"]
[Site "Linares"]
[Date "2022.09.17"]
[Round "1.6"]
[White "Cramling, Pia"]
[Black "Ambartsumova, Karina"]
[Result "1/2-1/2"]
[ECO "E04"]
[WhiteElo "2468"]
[BlackElo "2386"]
[Annotator "ChessBase"]
[PlyCount "83"]
[EventDate "2022.09.17"]
[EventType "team-tourn"]
[EventCountry "ESP"]
[SourceTitle "playchess.com"]
[Source "ChessBase"]
[SourceQuality "1"]
[TimeControl "5400+30"]

1. d4 {[%emt 0:00:07]} Nf6 {[%emt 0:00:38]} 2. c4 {[%emt 0:00:17]} e6 {[%emt 0:01:05]} 3. Nf3 {[%emt 0:00:37]} d5 {[%emt 0:00:28]} 4. g3 {[%emt 0:00:24]} dxc4 {[%emt 0:04:55]} 5. Bg2 {[%emt 0:00:37]} Nc6 {[%emt 0:00:28]} 6. Qa4 {[%emt 0:01:00]} Bb4+ {[%emt 0:02:01]} 7. Bd2 {[%emt 0:00:16]} Bd6 {[%emt 0:01:26]} 8. Na3 {[%emt 0:00:58]} Bxa3 {[%emt 0:05:21]} 9. Qxa3 {[%emt 0:01:59]} Ne4 {[%emt 0:03:16]} 10. Be3 {[%emt 0:02:53]} Nd6 {[%emt 0:04:32]} 11. O-O {[%emt 0:04:21]} O-O {[%emt 0:08:44]} 12. Rfd1 {[%emt 0:22:42]} f6 {[%emt 0:12:34]} 13. Rac1 {[%emt 0:05:13]} Bd7 {[%emt 0:20:11]} 14. Bf4 {[%emt 0:06:38]} Qe7 {[%emt 0:06:37]} 15. Bxd6 {[%emt 0:02:35]} cxd6 {[%emt 0:07:20]} 16. Rxc4 {[%emt 0:00:59]} Rfe8 {[%emt 0:00:44]} 17. Ne1 {[%emt 0:15:01]} d5 {[%emt 0:00:28]} 18. Qxe7 {[%emt 0:00:19]} Nxe7 {[%emt 0:02:59]} 19. Rcc1 {[%emt 0:18:18]} Rac8 {[%emt 0:00:39]} 20. Nd3 {[%emt 0:00:21]} Rxc1 {[%emt 0:00:56]} 21. Rxc1 {[%emt 0:00:06]} Rc8 {[%emt 0:00:08]} 22. Rxc8+ {[%emt 0:00:48]} Bxc8 {[%emt 0:00:04]} 23. h4 {[%emt 0:00:18]} Kf7 {[%emt 0:01:23]} 24. Kf1 {[%emt 0:00:30]} Nc6 {[%emt 0:04:03]} 25. e3 {[%emt 0:00:09]} Ke7 {[%emt 0:01:07]} 26. Ke1 {[%emt 0:01:59]} h6 {[%emt 0:01:47]} 27. Kd2 {[%emt 0:03:15]} b6 {[%emt 0:02:04]} 28. Kc3 {[%emt 0:01:00]} Ba6 {[%emt 0:01:11]} 29. Nb4 {[%emt 0:03:06]} Nxb4 {[%emt 0:00:50]} 30. Kxb4 {[%emt 0:00:02]} Kd6 {[%emt 0:03:28]} 31. f4 {[%emt 0:01:27]} Be2 {[%emt 0:01:01]} 32. Kc3 {[%emt 0:00:15]} Bb5 {[%emt 0:02:32]} 33. Bf3 {[%emt 0:00:34]} Bf1 {[%emt 0:00:27]} 34. a3 {[%emt 0:00:23]} Bb5 {[%emt 0:00:20]} 35. Kd2 {[%emt 0:01:24]} Ba6 {[%emt 0:00:44]} 36. Bd1 {[%emt 0:01:17]} Bb5 {[%emt 0:00:30]} 37. Bh5 {[%emt 0:00:40]} Ba6 {[%emt 0:00:54]} 38. Kc3 {[%emt 0:01:20]} Bb5 {[%emt 0:00:23]} 39. Kd2 {[%emt 0:01:25]} Ba6 {[%emt 0:00:31]} 40. Kc3 {[%emt 0:00:40]} Bb5 {[%emt 0:00:04]} 41. Kd2 {[%emt 0:01:09]} Ba6 {[%emt 0:00:02]} 42. Kc3 {[%emt 0:00:39]} 1/2-1/2

[Event "ESP-chT Honor Division 2022"]
[Site "Linares"]
[Date "2022.09.17"]
[Round "1.7"]
[White "Harikrishna, Pentala"]
[Black "Ayats Llobera, Gerard"]
[Result "1-0"]
[ECO "B85"]
[WhiteElo "2716"]
[BlackElo "2451"]
[Annotator "ChessBase"]
[PlyCount "43"]
[EventDate "2022.09.17"]
[EventType "team-tourn"]
[EventCountry "ESP"]
[SourceTitle "playchess.com"]
[Source "ChessBase"]
[SourceQuality "1"]
[TimeControl "5400+30"]

1. e4 c5 {[%emt 0:03:29]} 2. Nf3 {[%emt 0:00:13]} e6 {[%emt 0:00:13]} 3. d4 {[%emt 0:00:36]} cxd4 {[%emt 0:00:14]} 4. Nxd4 {[%emt 0:00:06]} a6 {[%emt 0:00:02]} 5. Be2 {[%emt 0:03:05]} Nf6 {[%emt 0:00:33]} 6. Nc3 {[%emt 0:00:18]} Qc7 {[%emt 0:02:35]} 7. O-O {[%emt 0:03:21]} d6 {[%emt 0:02:06]} 8. f4 {[%emt 0:06:48]} Nbd7 {[%emt 0:00:42]} 9. Bf3 {[%emt 0:02:10]} e5 {[%emt 0:23:51]} 10. Nf5 {[%emt 0:08:28]} g6 {[%emt 0:03:26]} 11. fxe5 {[%emt 0:03:52]} dxe5 {[%emt 0:01:03]} 12. Nh6 {[%emt 0:00:21]} Bg7 {[%emt 0:14:18]} 13. Bg5 {[%emt 0:11:10]} Nb6 {[%emt 0:06:17]} 14. Be2 {[%emt 0:05:08]} Qe7 {[%emt 0:05:57]} 15. Qe1 {[%emt 0:11:53]} Be6 {[%emt 0:21:19]} 16. Kh1 {[%emt 0:01:06]} Qf8 {[%emt 0:05:30]} 17. Qh4 {[%emt 0:02:48]} Nh5 {[%emt 0:00:15]} 18. Nf5 {[%emt 0:06:38]} Bxf5 {[%emt 0:05:33]} 19. exf5 {[%emt 0:00:27]} Qc5 {[%emt 0:00:23]} 20. Ne4 {[%emt 0:03:03]} Qc7 {[%emt 0:00:29]} 21. Bxh5 {[%emt 0:02:12]} gxh5 {[%emt 0:00:12]} 22. Rad1 {[%emt 0:00:58]} 1-0

[Event "ESP-chT Honor Division 2022"]
[Site "Linares"]
[Date "2022.09.17"]
[Round "1.8"]
[White "Martinez Fernandez, Adrian"]
[Black "Gukesh D"]
[Result "0-1"]
[ECO "B31"]
[WhiteElo "2338"]
[BlackElo "2726"]
[Annotator "ChessBase"]
[PlyCount "78"]
[EventDate "2022.09.17"]
[EventType "team-tourn"]
[EventCountry "ESP"]
[SourceTitle "playchess.com"]
[Source "ChessBase"]
[SourceQuality "1"]
[TimeControl "5400+30"]

1. e4 {[%emt 0:00:03]} c5 {[%emt 0:02:03]} 2. Nf3 {[%emt 0:00:07]} Nc6 {[%emt 0:01:59]} 3. Bb5 {[%emt 0:00:07]} g6 {[%emt 0:02:02]} 4. Bxc6 {[%emt 0:00:08]} dxc6 {[%emt 0:00:06]} 5. d3 {[%emt 0:00:06]} Qc7 {[%emt 0:01:08]} 6. O-O {[%emt 0:01:25]} e5 {[%emt 0:00:48]} 7. a4 {[%emt 0:00:16]} Nf6 {[%emt 0:02:52]} 8. Na3 {[%emt 0:04:55]} Nh5 {[%emt 0:01:01]} 9. Nc4 {[%emt 0:05:47]} f6 {[%emt 0:02:16]} 10. h3 {[%emt 0:03:16]} Be6 {[%emt 0:00:26]} 11. Be3 {[%emt 0:02:32]} Be7 {[%emt 0:02:19]} 12. Qe1 {[%emt 0:02:10]} O-O {[%emt 0:03:33]} 13. a5 {[%emt 0:02:24]} Rfd8 {[%emt 0:04:12]} 14. Qc3 {[%emt 0:03:05]} Bf7 {[%emt 0:02:14]} 15. Qa3 {[%emt 0:03:04]} Rd4 {[%emt 0:11:31]} 16. b3 {[%emt 0:05:21]} Rf8 {[%emt 0:03:03]} 17. Bh6 {[%emt 0:08:12]} Rfd8 {[%emt 0:03:22]} 18. Nxd4 {[%emt 0:01:04]} cxd4 {[%emt 0:00:06]} 19. Qc1 {[%emt 0:00:06]} g5 {[%emt 0:01:27]} 20. h4 {[%emt 0:02:11]} Nf4 {[%emt 0:02:03]} 21. Qd2 {[%emt 0:05:31]} Kh8 {[%emt 0:11:02]} 22. g3 {[%emt 0:04:24]} Rg8 {[%emt 0:08:37]} 23. gxf4 {[%emt 0:03:39]} gxf4+ {[%emt 0:00:56]} 24. Kh2 {[%emt 0:00:06]} Rg6 {[%emt 0:06:51]} 25. Bg7+ {[%emt 0:07:39]} Kxg7 {[%emt 0:05:44]} 26. Rg1 {[%emt 0:00:07]} Kh8 {[%emt 0:05:06]} 27. Qe2 {[%emt 0:10:12]} Rh6 {[%emt 0:04:49]} 28. Qg4 {[%emt 0:00:05]} Bg6 {[%emt 0:03:40]} 29. Kg2 {[%emt 0:04:29]} f5 {[%emt 0:01:31]} 30. exf5 {[%emt 0:00:34]} Bh5 {[%emt 0:00:18]} 31. Qh3 {[%emt 0:02:21]} Be2 {[%emt 0:00:07]} 32. f3 {[%emt 0:09:44]} Rxh4 {[%emt 0:01:01]} 33. Rh1 {[%emt 0:00:08]} Rxh3 {[%emt 0:00:52]} 34. Rxh3 {[%emt 0:00:05]} e4 {[%emt 0:01:34]} 35. dxe4 {[%emt 0:00:36]} Bc5 {[%emt 0:00:49]} 36. Rh4 {[%emt 0:01:36]} d3 {[%emt 0:01:05]} 37. Rah1 {[%emt 0:00:07]} dxc2 {[%emt 0:00:34]} 38. f6 {[%emt 0:01:19]} Bxc4 {[%emt 0:00:47]} 39. bxc4 {[%emt 0:00:25]} Be3 {[%emt 0:00:36]} 0-1